bitfinex/quotes_SOLUSD_20260228
["timestamp","ask_amount","ask_price","bid_price","bid_amount"]
[1772263345242,14.61929939,78.21,78.17,14.61929939]
[1772263345449,14.61929939,78.21,78.17,15.90072074]
[1772263345737,14.61929939,78.21,78.17,14.61929939]
[1772263345942,1.31053046,78.208,78.17,14.61929939]
[1772263346150,1.31053046,78.208,78.171,1.27690839]
[1772263347047,1.31053046,78.207,78.172,12.79230414]
[1772263347345,14.61929939,78.23,78.191,1.26261156]
[1772263347543,1.31053046,78.229,78.191,1.26261156]
[1772263347744,1.31053046,78.219,78.181,0.28432314]
[1772263347946,31.95147694,78.244,78.17,14.61929939]
[1772263347947,1.31053046,78.209,78.17,14.61929939]
[1772263348161,1.31053046,78.209,78.171,12.79246779]
[1772263348561,1.31053046,78.209,78.171,44.77363727]
[1772263348852,1.31053046,78.209,78.171,12.79246779]
[1772263349057,1.31053046,78.199,78.166,1.24845711]
[1772263349353,14.59854388,78.21,78.167,0.28432314]
[1772263349666,1.31053046,78.213,78.174,0.28432314]
[1772263349833,14.59854388,78.25,78.161,1.23350165]
[1772263349834,14.59854388,78.21,78.161,1.23350165]
[1772263350034,1.31053046,78.209,78.166,1.23350165]
[1772263351352,1.31053046,78.207,78.167,13.99716162]
[1772263351732,1.31053046,78.207,78.14,68.82388824]
[1772263351733,1.31053046,78.199,78.16,12.79417184]
[1772263352462,44.75245498,78.208,78.131,63.99492023]
[1772263352463,1.31053046,78.189,78.147,12.79639653]
[1772263353161,1.31053046,78.187,78.147,12.79639653]
[1772263353664,1.31053046,78.187,78.148,1.17516363]
[1772263354165,1.31053046,78.187,78.147,12.79639653]
[1772263354366,1.31053046,78.179,78.147,12.79639653]
[1772263354563,1.31053046,78.179,78.148,1.16094184]
[1772263355163,1.31053046,78.179,78.136,31.99549336]
[1772263355360,1.31053046,78.179,78.137,1.14686191]
[1772263355564,1.31053046,78.177,78.137,1.14686191]
[1772263355855,1.31053046,78.177,78.138,1.43118505]
[1772263356063,1.31053046,78.188,78.138,1.43118505]
[1772263356740,1.31053046,78.188,78.138,1.14686191]
[1772263357055,1.31053046,78.188,78.136,31.99549336]
[1772263357056,1.31053046,78.188,78.142,1.11912129]
[1772263357270,1.31053046,78.188,78.145,1.11912129]
[1772263357471,12.78984997,78.187,78.145,1.11912129]
[1772263357652,1.31053046,78.188,78.145,1.11912129]
[1772263358068,14.10033425,78.188,78.145,1.11912129]
[1772263358252,14.10033425,78.188,78.144,44.93126885]
[1772263358253,14.59854388,78.2,78.148,0.28432314]
[1772263358454,1.31053046,78.197,78.164,0.28432314]
[1772263358662,1.31053046,78.209,78.165,1.1054575]
[1772263359055,1.31053046,78.209,78.146,1.1054575]
[1772263359250,1.31053046,78.207,78.151,1.09192934]
[1772263359449,1.31053046,78.207,78.155,1.09192934]
[1772263359669,1.31053046,78.207,78.154,0.28432314]
[1772263359670,1.31053046,78.199,78.147,44.78738786]
[1772263359973,1.31053046,78.189,78.147,44.78738786]
[1772263360359,1.31053046,78.189,78.147,12.79639653]
[1772263360551,1.31053046,78.189,78.137,12.79803422]
[1772263360952,1.21770912,78.179,78.137,12.79803422]
[1772263361161,1.21770912,78.179,78.138,1.05444915]
[1772263361485,1.21770912,78.179,78.14,1.05444915]
[1772263361684,1.15799934,78.188,78.145,1.05444915]
[1772263362267,63.91772943,78.226,78.155,1.03086572]
[1772263362268,1.15799934,78.201,78.155,1.03086572]
[1772263363490,1.15799934,78.239,78.169,1.01810954]
[1772263363673,1.15799934,78.219,78.162,0.28432314]
[1772263363873,31.95444081,78.237,78.156,12.79492297]
[1772263363874,1.15799934,78.199,78.156,12.79492297]
[1772263364083,1.15799934,78.189,78.156,12.79492297]
[1772263364469,1.15799934,78.189,78.147,12.79639653]
[1772263364777,31.95444081,78.237,78.147,12.79639653]
[1772263364778,1.15799934,78.209,78.153,0.14216157]
[1772263364994,1.15799934,78.209,78.156,1.00547881]
[1772263365478,1.15799934,78.207,78.157,12.79475926]
[1772263365688,1.15799934,78.207,78.157,45.77462953]
[1772263365882,1.15799934,78.207,78.161,0.14216157]
[1772263366060,1.15799934,78.207,78.157,44.78165742]
[1772263366061,1.15799934,78.207,78.165,0.28432314]
[1772263366476,1.15799934,78.207,78.157,44.78165742]
[1772263366873,1.15799934,78.207,78.165,0.28432314]
[1772263367386,1.15799934,78.207,78.166,0.96832535]
[1772263367590,1.15799934,78.205,78.167,44.77592845]
[1772263368094,1.15799934,78.205,78.167,12.79312241]
[1772263368402,1.15799934,78.199,78.158,12.79459556]
[1772263368582,1.15799934,78.199,78.158,44.78108446]
[1772263368962,1.15799934,78.199,78.139,63.98789617]
[1772263368963,1.15799934,78.189,78.139,1.2405057]
[1772263369278,1.15799934,78.189,78.139,0.95618256]
[1772263369474,1.15799934,78.187,78.145,44.78853412]
[1772263369985,1.15799934,78.187,78.146,0.9441584]
[1772263370377,1.15799934,78.187,78.145,12.79672403]
[1772263370774,1.15799934,78.187,78.146,0.93225154]
[1772263371478,1.15799934,78.187,78.145,44.78853412]
[1772263371696,1.15799934,78.185,78.146,0.92046068]
[1772263372675,14.59854388,78.2,78.148,0.90878453]
[1772263372866,1.15799934,78.21,78.158,0.90878453]
[1772263373079,1.15799934,78.21,78.145,31.99181009]
[1772263373080,1.15799934,78.199,78.151,0.28432314]
[1772263373380,1.15799934,78.199,78.145,31.99181009]
[1772263373580,1.15799934,78.187,78.135,0.89722181]
[1772263374080,1.15799934,78.187,78.144,0.14216157]
[1772263374264,1.15799934,78.187,78.145,0.14216157]
[1772263375181,1.15799934,78.187,78.122,108.80417806]
[1772263375182,1.15799934,78.187,78.135,0.87443168]
[1772263375382,1.15799934,78.187,78.122,108.80417806]
[1772263375383,1.15799934,78.169,78.122,12.80049153]
[1772263375565,108.71233436,78.188,78.049,51.24952526]
[1772263375566,1.15799934,78.159,78.114,0.87443168]
[1772263376076,1.08498423,78.158,78.114,0.87443168]
[1772263376281,1.08498423,78.158,78.116,0.85430721]
[1772263376490,1.08498423,78.17,78.132,0.85430721]
[1772263376688,1.08498423,78.17,78.126,0.85430721]
[1772263377387,1.08498423,78.159,78.113,45.65017029]
[1772263377589,1.08498423,78.159,78.114,0.84328796]
[1772263377782,1.08498423,78.157,78.116,0.84328796]
[1772263377977,1.08498423,78.149,78.115,12.8016386]
[1772263378186,1.08498423,78.149,78.105,12.80327763]
[1772263378398,1.08498423,78.149,78.11,14.61917787]
[1772263378774,1.08498423,78.149,78.12,14.61917787]
[1772263379277,1.08498423,78.149,78.11,14.61917787]
[1772263379886,1.08498423,78.129,78.105,12.80327763]
[1772263380491,1.08498423,78.129,78.095,12.80491708]
[1772263381082,1.08498423,78.119,78.095,12.80491708]
[1772263381596,1.08498423,78.129,78.095,12.80491708]
[1772263381798,1.08498423,78.138,78.102,0.80026045]
[1772263381995,14.61917787,78.2,78.093,8.16154059]
[1772263381996,1.08498423,78.119,78.093,8.16154059]
[1772263382302,1.08498423,78.119,78.094,12.80508105]
[1772263382499,1.08498423,78.119,78.093,8.16154059]
[1772263382678,1.08498423,78.128,78.1,14.61917787]
[1772263382986,1.08498423,78.128,78.093,8.16154059]
[1772263382987,1.08498423,78.119,78.093,8.16154059]
[1772263383167,12.79770665,78.139,78.07,0.1]
[1772263383168,14.61917787,78.1,78.07,0.1]
[1772263383367,14.61917787,78.1,78.072,1.09296381]
[1772263383792,14.61917787,78.1,78.074,1.09296381]
[1772263384497,27.42164134,78.11,78.074,1.09296381]
[1772263385077,14.61917787,78.1,78.074,1.09296381]
[1772263385285,12.80246347,78.11,78.07,0.1]
[1772263385579,14.61917787,78.1,78.07,0.1]
[1772263385789,44.80860864,78.11,78.07,0.1]
[1772263385790,12.80590095,78.089,78.07,0.1]
[1772263386095,14.61917787,78.09,78.07,0.1]
[1772263386869,14.61917787,78.08,78.07,0.1]
[1772263387085,14.61917787,78.08,78.044,1.09296381]
[1772263387995,27.42661262,78.08,78.046,1.09296381]
[1772263388415,14.61917787,78.1,78.061,1.09296381]
[1772263388578,14.61917787,78.09,78.051,1.09296381]
[1772263388906,0.14216157,78.14,78.033,9.28090032]
[1772263389091,14.61917787,78.07,78.035,1.09296381]
[1772263389288,14.61917787,78.08,78.041,1.09296381]
[1772263389477,14.61917787,78.07,78.035,1.09296381]
[1772263389982,12.80918162,78.069,78.033,8.18793651]
[1772263390186,44.83213567,78.069,78.033,8.18793651]
[1772263390382,14.61917787,78.06,78.033,8.18793651]
[1772263390782,12.80918162,78.069,78.035,1.09296381]
[1772263391679,14.61917787,78.06,78.035,1.09296381]
[1772263391999,12.81082258,78.059,78.035,1.09296381]
[1772263392196,12.81082258,78.059,78.033,8.18793651]
[1772263392501,14.61917787,78.05,78.03,0.1]
[1772263393074,14.61917787,78.05,78.021,1.09296381]
[1772263393403,12.81082258,78.059,78.021,1.09296381]
[1772263393879,12.81082258,78.059,78.02,19.26479017]
[1772263393880,12.80754108,78.079,78.043,1.09296381]
[1772263394080,14.61917787,78.07,78.034,1.09296381]
[1772263394286,14.61917787,78.05,78.021,1.09296381]
[1772263394475,14.61917787,78.05,78.02,4.6456123]
[1772263394686,44.82639378,78.079,78.02,1e-08]
[1772263394687,14.61917787,78.04,78.02,1e-08]
[1772263395312,14.61917787,78.04,77.955,64.88463876]
[1772263395313,0.28432314,78.078,77.997,1.09296381]
[1772263395489,0.28432314,78.078,77.996,12.82117031]
[1772263395490,14.61917787,78.04,78.001,1.09296381]
[1772263396001,14.61917787,78.02,77.991,1.09296381]
[1772263396205,44.84937017,78.039,77.981,1.09296381]
[1772263396387,14.61917787,78.02,77.985,1.09296381]
[1772263396818,12.81287229,78.047,78.011,1.09296381]
[1772263397196,12.81287229,78.047,78.01,14.61917787]
[1772263397197,14.61917787,78.05,78.021,1.09296381]
[1772263397398,14.61917787,78.05,78.011,1.09296381]
[1772263397996,64.02213823,78.098,78.031,1.09296381]
[1772263398310,14.61917787,78.06,78.021,1.09296381]
[1772263399000,14.61917787,78.04,78.012,1.09296381]
[1772263399406,14.61917787,78.04,78.002,12.82008109]
[1772263399600,14.61917787,78.04,78.002,13.9130449]
[1772263399991,44.84937017,78.039,78.002,1.09296381]
[1772263400195,12.81410576,78.039,78.002,1.09296381]
[1772263400394,12.81254625,78.049,78.011,1.09296381]
[1772263400605,14.61917787,78.04,78.002,1.09296381]
[1772263401119,14.61917787,78.03,77.992,12.82175473]
[1772263401318,14.61917787,78.02,77.988,12.82247134]
[1772263401496,14.61917787,78.02,77.988,13.91543515]
[1772263401698,14.61917787,78.02,77.989,1.09296381]
[1772263402319,14.61917787,78.04,78.001,1.09296381]
[1772263402914,44.84477301,78.047,78.01,14.61917787]
[1772263403116,12.81279229,78.047,78.011,1.09296381]
[1772263403618,44.84477301,78.047,78.011,1.09296381]
[1772263403824,14.65933008,78.07,78.04,14.65933008]
[1772263404010,44.81491439,78.099,78.04,14.65933008]
[1772263404319,14.65933008,78.1,78.039,1.09296381]
[1772263404320,12.80918162,78.069,78.039,1.09296381]
[1772263404520,14.65933008,78.05,78.01,14.65933008]
[1772263404696,44.83213567,78.069,77.974,44.88675711]
[1772263404697,14.65933008,78.06,78.031,1.09296381]
[1772263404900,44.83213567,78.069,78.031,1.09296381]
[1772263405108,14.65933008,78.08,78.041,1.09296381]
[1772263405629,14.65933008,78.1,77.95,51.31482695]
[1772263405630,64.02945477,78.09,78.03,15.75229389]
[1772263405798,14.65933008,78.07,78.031,1.09296381]
[1772263405998,14.65933008,78.07,78.04,14.65933008]
[1772263406211,44.83787903,78.059,78.02,14.65933008]
[1772263406410,14.65933008,78.05,78.02,27.47641928]
[1772263406717,14.65933008,78.05,78.02,12.8170892]
[1772263406907,12.81082258,78.059,78.021,1.09296381]
[1772263408522,12.81082258,78.059,78.023,1.09296381]
[1772263409512,12.81082258,78.059,78.025,1.09296381]
[1772263410510,12.81082258,78.059,78.027,1.09296381]
[1772263411302,44.82007939,78.09,78.031,1.09296381]
[1772263411526,14.65933008,78.08,78.041,1.09296381]
[1772263412018,14.65933008,78.07,78.041,1.09296381]
[1772263412224,14.65933008,78.06,78.033,1.09296381]
[1772263412604,12.81082258,78.059,78.033,1.09296381]
[1772263412804,0.28432314,78.058,78.014,1.09296381]
[1772263413117,0.28432314,78.058,77.964,64.99468915]
[1772263413118,14.65933008,78.03,77.991,1.09296381]
[1772263413321,14.65933008,78.02,77.991,1.09296381]
[1772263413825,14.65933008,78.04,78.001,1.09296381]
[1772263414004,14.65933008,78.03,78.001,1.09296381]
[1772263414724,12.81574799,78.029,78.001,1.09296381]
[1772263415418,14.65933008,78.04,78.001,1.09296381]
[1772263415612,12.81431032,78.038,78.001,1.09296381]
[1772263415946,14.65933008,78.02,77.98,27.48313105]
[1772263416114,14.65933008,78.02,77.981,1.09296381]
[1772263416303,14.65933008,78.03,77.99,14.65933008]
[1772263416503,14.65933008,78.03,77.991,1.09296381]
[1772263416822,64.06747907,78.043,77.991,1.09296381]
[1772263416823,14.65933008,78.02,77.991,1.09296381]
[1772263417013,14.65933008,78.02,77.993,1.09296381]
[1772263417506,14.65933008,78.02,77.984,1.09296381]
[1772263418511,12.81574799,78.029,77.991,1.09296381]
[1772263418816,12.81574799,78.029,77.993,1.09296381]
[1772263419316,44.85511796,78.029,77.993,1.09296381]
[1772263419526,12.81574799,78.029,77.993,1.09296381]
[1772263419827,44.85511796,78.029,77.993,1.09296381]
[1772263421018,12.81426997,78.038,78.001,1.09296381]
[1772263422310,14.65933008,78.04,78.01,14.65933008]
[1772263422618,14.65933008,78.04,78.011,1.09296381]
[1772263422804,14.65933008,78.04,78.0,14.65933008]
[1772263422805,14.65933008,78.04,78.001,1.09296381]
[1772263423127,14.65933008,78.04,77.971,64.12563243]
[1772263423128,14.65933008,78.02,77.98,27.48311009]
[1772263423327,14.65933008,78.01,77.981,1.09296381]
[1772263424210,14.65933008,78.01,77.974,12.82462881]
[1772263424424,14.65933008,78.01,77.974,13.91759262]
[1772263425128,12.8190337,78.009,77.981,1.09296381]
[1772263425424,12.8190337,78.009,77.974,12.82462881]
[1772263425425,14.65933008,78.03,78.0,14.65933008]
[1772263425818,14.65933008,78.03,77.991,1.09296381]
[1772263426813,14.65933008,78.03,77.998,1.09296381]
[1772263427314,12.81574799,78.029,77.998,1.09296381]
[1772263427514,44.85511796,78.029,77.998,1.09296381]
[1772263428111,44.85511796,78.029,77.992,1.09296381]
[1772263428311,44.85511796,78.029,77.984,1.09296381]
[1772263428312,14.65933008,78.02,77.984,1.09296381]
[1772263428622,14.65933008,78.02,77.99,14.65933008]
[1772263428827,14.65933008,78.02,77.986,1.09296381]
[1772263429336,12.81739063,78.019,77.986,1.09296381]
[1772263429632,12.81739063,78.019,77.987,12.82264992]
[1772263429838,12.81739063,78.019,77.991,1.09296381]
[1772263431616,108.90733906,78.048,77.993,1.09296381]
[1772263431824,14.65933008,78.02,77.993,1.09296381]
[1772263432024,14.65933008,78.02,77.982,1.09296381]
[1772263432332,14.65933008,78.01,77.982,1.09296381]
[1772263433622,14.65933008,78.0,77.973,1.33429601]
[1772263433826,14.65933008,77.99,77.973,0.2413322]
[1772263434933,12.82232109,77.989,77.973,0.2413322]
[1772263435537,44.87812383,77.989,77.957,1.09296381]
[1772263437442,38.51,78.029,77.95,14.65933008]
[1772263437443,14.65933008,78.01,77.971,1.09296381]
[1772263437641,14.65933008,78.0,77.971,1.09296381]
[1772263437826,14.65933008,78.0,77.923,64.62924571]
[1772263437827,14.65933008,77.98,77.932,1.09296381]
[1772263438028,0.28432314,77.999,77.941,1.09296381]
[1772263438227,14.65933008,77.97,77.941,1.09296381]
[1772263438632,14.65933008,77.98,77.941,1.09296381]
[1772263438829,12.82561017,77.969,77.942,1.09296381]
[1772263439030,14.65933008,77.98,77.942,1.09296381]
[1772263439241,14.65933008,77.98,77.93,0.2]
[1772263439242,14.65933008,77.96,77.93,0.2]
[1772263439428,14.65933008,77.96,77.931,1.09296381]
[1772263439628,14.65933008,77.96,77.932,1.09296381]
[1772263440429,44.88272783,77.981,77.932,1.09296381]
[1772263440752,44.88272783,77.981,77.931,12.83186408]
[1772263440753,12.82363652,77.981,77.951,1.09296381]
[1772263440931,12.82232109,77.989,77.953,1.09296381]
[1772263441132,14.65933008,78.0,77.961,1.09296381]
[1772263441335,14.65933008,78.0,77.97,14.65933008]
[1772263441542,12.82001974,78.003,77.93,0.2]
[1772263441543,14.65933008,77.98,77.95,1.09296381]
[1772263441745,14.65933008,77.99,77.951,1.09296381]
[1772263442136,14.65933008,78.0,77.961,1.09296381]
[1772263442444,44.87006909,78.003,77.952,1.09296381]
[1772263442445,14.65933008,77.99,77.952,1.09296381]
[1772263443033,12.82232109,77.989,77.954,1.09296381]
[1772263444141,46.60023769,78.018,77.961,1.09296381]
[1772263444142,14.65933008,78.0,77.961,1.09296381]
[1772263444543,14.65933008,77.98,77.954,1.09296381]
[1772263445142,14.65933008,77.98,77.955,12.82791353]
[1772263445143,27.48329245,77.98,77.955,12.82791353]
[1772263445337,64.08859607,78.017,77.97,14.65933008]
[1772263445338,0.88477079,78.017,77.97,14.65933008]
[1772263445537,8.09023769,78.018,77.98,14.65933008]
[1772263445538,0.88477079,78.015,77.98,14.65933008]
[1772263447343,0.88477079,78.013,77.958,0.28432314]
[1772263447747,0.88477079,78.013,77.99,14.65933008]
[1772263447953,8.97500848,78.018,77.99,14.65933008]
[1772263448154,8.09023769,78.018,78.0,14.65933008]
[1772263448453,8.09023769,78.018,77.99,14.65933008]
[1772263448644,8.09023769,78.018,78.0,14.65933008]
[1772263448955,0.88477079,78.028,78.01,14.65933008]
[1772263449140,0.88477079,78.028,78.0,14.65933008]
[1772263449141,0.88477079,78.027,78.0,14.65933008]
[1772263449337,0.88477079,78.025,78.0,14.65933008]
[1772263449653,0.88477079,78.019,77.99,14.65933008]
[1772263451252,14.65933008,78.05,77.986,44.87985022]
[1772263451253,0.87242719,78.064,78.01,14.65933008]
[1772263451553,0.87242719,78.039,78.003,12.81992316]
[1772263451760,0.87242719,78.039,78.01,14.65933008]
[1772263453460,0.87242719,78.037,78.01,14.65933008]
[1772263454857,0.87242719,78.037,78.011,12.81870505]
[1772263455162,0.87242719,78.035,78.001,12.82034845]
[1772263455361,0.87242719,78.035,78.01,14.65933008]
[1772263455842,0.87242719,78.035,78.001,12.82034845]
[1772263456653,0.87242719,78.033,78.001,12.82034845]
[1772263458159,0.87242719,78.033,78.0,14.65933008]
[1772263458363,0.87242719,78.029,77.99,14.65933008]
[1772263458661,0.87242719,77.997,77.911,64.5574291]
[1772263458960,0.87242719,77.989,77.942,32.07500261]
[1772263459142,0.87242719,77.979,77.94,14.65933008]
[1772263459348,0.87242719,77.969,77.94,14.65933008]
[1772263459860,0.87242719,77.969,77.95,14.65933008]
[1772263460391,0.87242719,77.969,77.935,44.90921921]
[1772263460392,0.87242719,77.969,77.94,14.65933008]
[1772263460663,0.87242719,77.979,77.95,14.65933008]
[1772263460864,0.87242719,77.978,77.941,44.90576204]
[1772263461469,0.87242719,78.014,77.96,14.65933008]
[1772263461758,0.87242719,77.999,77.96,14.65933008]
[1772263462646,0.87242719,77.997,77.96,14.65933008]
[1772263462841,0.87242719,77.997,77.97,14.65933008]
[1772263463051,64.07387154,78.035,77.961,12.82692628]
[1772263463052,0.87242719,78.018,77.98,14.65933008]
[1772263463262,0.87242719,78.018,77.99,14.66584479]
[1772263463761,0.87242719,78.018,77.961,44.89424198]
[1772263463762,0.87242719,78.018,77.98,14.66584479]
[1772263464161,12.81672296,78.024,77.99,14.66584479]
[1772263464457,0.87242719,78.023,77.99,14.66584479]
[1772263464659,0.87242719,78.021,78.0,14.66584479]
[1772263464964,13.68864362,78.027,78.0,14.66584479]
[1772263465164,0.87242719,78.026,78.0,14.66584479]
[1772263466053,0.87242719,78.024,77.996,12.82115962]
[1772263466247,0.87242719,78.024,78.0,14.66584479]
[1772263467164,0.87242719,78.024,77.996,12.82115962]
[1772263467547,0.87242719,78.024,78.0,14.66584479]
[1772263467743,0.87242719,78.039,78.0,14.66584479]
[1772263468047,0.87242719,78.037,78.001,12.82034845]
[1772263468564,0.87242719,78.037,77.965,64.73068029]
[1772263468565,0.87242719,78.007,77.951,12.82857179]
[1772263468746,0.87242719,77.989,77.96,14.66584479]
[1772263468953,0.87242719,77.979,77.94,14.66584479]
[1772263469268,0.87242719,77.979,77.95,14.66584479]
[1772263469443,0.87242719,77.979,77.94,14.66584479]
[1772263470156,0.87242719,77.977,77.941,12.83021772]
[1772263471945,0.87242719,77.975,77.941,12.83021772]
[1772263472352,0.87242719,77.975,77.95,14.66584479]
[1772263473549,0.87242719,77.975,77.94,14.66584479]
[1772263474072,0.87242719,77.973,77.941,12.83021772]
[1772263474765,0.87242719,77.973,77.95,14.66584479]
[1772263475265,0.87242719,77.973,77.909,8.13499775]
[1772263475266,0.87242719,77.959,77.909,8.13499775]
[1772263475446,44.88675711,77.974,77.85,14.76584479]
[1772263475447,0.87242719,77.938,77.9,14.66584479]
[1772263475652,0.87242719,77.929,77.89,14.66584479]
[1772263475865,0.87242719,77.929,77.904,12.83627702]
[1772263476268,12.83190702,77.931,77.904,12.83627702]
[1772263476568,6.704,77.939,77.92,14.66584479]
[1772263478167,13.69935347,77.961,77.93,14.66584479]
[1772263478666,13.69935347,77.961,77.94,14.66584479]
[1772263478966,0.87242719,77.984,77.95,14.66584479]
[1772263479164,0.87242719,77.984,77.96,14.66584479]
[1772263479365,0.87242719,77.984,77.95,14.66584479]
[1772263479669,0.87242719,77.993,77.96,14.66584479]
[1772263480069,0.87242719,77.993,77.917,5.36086188]
[1772263480070,0.87242719,77.993,77.97,14.66584479]
[1772263480274,0.87242719,77.991,77.97,14.66584479]
[1772263480574,0.87242719,77.991,77.961,12.82692628]
[1772263480773,0.87242719,77.989,77.961,12.82692628]
[1772263481167,0.87242719,77.989,77.932,0.28432314]
[1772263481377,0.87242719,77.989,77.95,14.66584479]
[1772263482255,0.87242719,77.987,77.951,12.82857179]
[1772263482663,0.87242719,77.987,77.96,14.66584479]
[1772263483075,0.87242719,77.987,77.892,38.51]
[1772263483076,0.87242719,77.987,77.945,12.82952438]
[1772263483262,0.87242719,77.979,77.95,14.66584479]
[1772263483973,0.87242719,77.979,77.945,12.82952438]
[1772263484170,0.87242719,77.979,77.942,32.07513279]
[1772263484171,0.87242719,77.979,77.951,12.82857179]
[1772263484374,0.87242719,77.988,77.96,14.66584479]
[1772263486078,0.87242719,77.987,77.96,14.66584479]
[1772263486460,0.87242719,77.987,77.961,12.82692628]
[1772263486979,0.87242719,78.006,77.98,14.66584479]
[1772263487182,0.87242719,78.006,77.97,14.66584479]
[1772263487490,0.87242719,78.004,77.97,14.66584479]
[1772263488194,0.87242719,77.999,77.961,12.82692628]
[1772263488681,0.87242719,77.997,77.961,12.82692628]
[1772263489177,0.87242719,77.997,77.97,14.66584479]
[1772263490880,13.6935975,77.996,77.97,14.66584479]
[1772263491088,0.87242719,77.996,77.971,12.82528119]
[1772263491782,12.82050409,78.001,77.98,14.66584479]
[1772263492081,0.87242719,78.004,77.98,14.66584479]
[1772263492879,0.87242719,78.004,77.981,12.82363652]
[1772263493070,0.87242719,78.004,77.95,14.66584479]
[1772263493071,0.87242719,78.002,77.98,14.66584479]
[1772263494391,0.87242719,78.035,77.99,14.66584479]
[1772263494698,0.87242719,78.035,77.957,5.36086188]
[1772263494699,0.87242719,78.035,78.0,14.66584479]
[1772263494991,0.87242719,78.033,78.001,12.82034845]
[1772263495192,0.87242719,78.033,78.01,14.66584479]
[1772263495871,0.87242719,78.029,77.995,12.82124241]
[1772263496187,0.87242719,78.029,78.01,14.66584479]
[1772263497772,0.87242719,78.029,78.0,14.66584479]
[1772263497970,0.87242719,78.029,78.01,14.66584479]
[1772263498685,0.87242719,78.029,78.0,14.66584479]
[1772263499491,0.87242719,78.029,77.975,109.00929784]
[1772263499492,0.87242719,78.027,77.99,14.66584479]
[1772263499991,0.87242719,78.027,78.0,14.66584479]
[1772263500689,0.87242719,78.027,78.001,12.82034845]
[1772263501606,0.87242719,78.027,78.01,14.66584479]
[1772263501903,14.66584479,78.02,77.951,44.90000127]
[1772263502200,0.87242719,78.019,77.98,14.66584479]
[1772263502893,14.66584479,78.05,77.98,14.66584479]
[1772263502894,0.87242719,78.009,77.98,14.66584479]
[1772263503293,0.87242719,78.009,77.98,27.48952367]
[1772263503794,0.87242719,78.009,77.98,14.66584479]
[1772263504000,0.87242719,78.025,78.0,14.66584479]
[1772263504874,0.87242719,78.023,78.0,14.66584479]
[1772263505398,0.87242719,78.032,78.01,14.66584479]
[1772263505692,0.87242719,78.032,77.985,44.88042571]
[1772263505693,0.87242719,78.032,78.02,14.66584479]
[1772263505894,13.6878467,78.031,78.01,14.66584479]
[1772263506284,0.87242719,78.031,78.01,14.66584479]
[1772263506973,0.87242719,78.039,78.02,14.66584479]
[1772263507786,0.87242719,78.039,78.011,12.81870505]
[1772263507988,0.87242719,78.039,78.01,14.66584479]
[1772263507989,0.87242719,78.038,78.01,14.66584479]
[1772263508390,0.87242719,78.038,78.02,14.66584479]
[1772263510298,0.87242719,78.038,78.03,14.66584479]
[1772263511588,64.04782674,78.067,77.987,64.11307548]
[1772263511589,0.87242719,78.036,77.993,32.05388309]
[1772263511782,0.87242719,78.036,78.01,14.66584479]
[1772263512902,0.87242719,78.029,77.972,0.28432314]
[1772263513104,0.87242719,78.019,77.99,14.66584479]
[1772263513697,0.87242719,78.019,77.95,14.66584479]
[1772263513698,0.87242719,78.017,77.953,5.36086188]
[1772263514004,0.87242719,78.017,77.99,14.66584479]
[1772263514709,0.87242719,78.017,77.954,0.28432314]
[1772263515003,0.87242719,78.017,77.98,14.66584479]
[1772263515588,12.81788351,78.016,77.98,14.66584479]
[1772263515790,0.87242719,78.015,77.98,14.66584479]
[1772263516211,0.87242719,78.015,77.99,14.66584479]
[1772263516402,0.87242719,78.027,78.01,14.66584479]
[1772263516595,0.87242719,78.027,77.979,12.82387009]
[1772263516596,0.87242719,78.048,78.02,14.66584479]
[1772263516791,0.2,78.07,78.04,14.66584479]
[1772263517008,0.2,78.07,78.0,14.66584479]
[1772263517009,12.80426125,78.099,78.06,14.66584479]
[1772263517206,44.81491439,78.099,78.07,14.66584479]
[1772263517513,14.66584479,78.08,78.04,14.66584479]
[1772263517720,12.80426125,78.099,78.06,14.66584479]
[1772263517890,14.66584479,78.09,78.06,14.66584479]
[1772263518094,14.66584479,78.09,78.05,14.66584479]
[1772263518289,14.66584479,78.08,78.05,14.66584479]
[1772263518494,14.66584479,78.09,78.05,14.66584479]
[1772263519011,0.79429602,78.079,78.04,14.66584479]
[1772263519913,0.79429602,78.077,78.04,14.66584479]
[1772263520119,0.79429602,78.077,78.05,14.66584479]
[1772263521007,0.79429602,78.077,78.04,14.66584479]
[1772263521896,0.79429602,78.075,78.041,12.81377737]
[1772263522796,12.80803319,78.076,78.05,14.66584479]
[1772263523499,13.60232921,78.076,78.05,14.66584479]
[1772263523700,0.79429602,78.075,78.05,14.66584479]
[1772263524216,0.79429602,78.073,78.05,14.66584479]
[1772263524997,12.80836129,78.074,77.994,13.56525169]
[1772263524998,0.79429602,78.058,77.994,13.56525169]
[1772263525195,0.79429602,78.049,78.01,14.65842651]
[1772263525620,0.79429602,78.039,78.0,14.65842651]
[1772263525822,0.79429602,78.039,78.01,14.65842651]
[1772263526211,12.81426997,78.038,78.01,14.65842651]
[1772263526410,0.79429602,78.037,78.01,14.65842651]
[1772263526603,0.79429602,78.037,77.984,0.7437585]
[1772263526806,0.79429602,78.029,77.99,14.65842651]
[1772263527117,0.79429602,78.029,77.991,0.7437585]
[1772263527319,0.79429602,78.029,78.0,14.65842651]
[1772263527802,0.79429602,78.029,77.99,14.65842651]
[1772263528198,0.79429602,78.027,77.984,0.7437585]